bitfinex-derivatives/quotes_BTCF0:USTF0_20240907
["timestamp","ask_amount","ask_price","bid_price","bid_amount"]
[1725693773502,0.6011304,54322.0,54303.0,0.16516922]
[1725693773503,0.092093,54307.0,54303.0,0.16516922]
[1725693773701,0.092093,54307.0,54304.0,0.190996]
[1725693773896,0.05512735,54308.0,54304.0,0.190996]
[1725693773897,0.1,54305.0,54304.0,0.190996]
[1725693774299,0.11185,54305.0,54304.0,0.190996]
[1725693774894,0.11185,54305.0,54304.0,0.26406822]
[1725693775302,0.11185,54305.0,54304.0,0.190996]
[1725693775604,0.11185,54305.0,54304.0,0.26406822]
[1725693776007,0.01185,54305.0,54304.0,0.26406822]
[1725693776507,0.01785,54305.0,54304.0,0.26506822]
[1725693777108,0.01785,54305.0,54304.0,0.191996]
[1725693781399,0.006,54305.0,54304.0,0.191996]
[1725693781599,0.098095,54305.0,54304.0,0.191996]
[1725693781817,0.57171151,54305.0,54304.0,0.001]
[1725693782112,0.18423,54293.0,54292.0,0.07317217]
[1725693782305,0.18423,54293.0,54287.0,0.0481]
[1725693782306,0.19,54293.0,54287.0,0.0481]
[1725693782612,0.282124,54288.0,54287.0,0.0481]
[1725693782907,0.27056169,54288.0,54285.0,0.0962]
[1725693783099,0.25698169,54288.0,54285.0,0.0962]
[1725693783301,0.20185,54288.0,54285.0,0.0962]
[1725693783501,0.092127,54286.0,54285.0,0.0962]
[1725693783710,0.091127,54286.0,54285.0,0.0962]
[1725693783907,0.103977,54286.0,54285.0,0.0962]
[1725693784301,0.103977,54286.0,54285.0,0.0972]
[1725693784506,0.01285,54286.0,54285.0,0.189329]
[1725693785606,0.01885,54286.0,54285.0,0.189329]
[1725693786414,0.01285,54286.0,54285.0,0.177329]
[1725693787409,0.19,54296.0,54285.0,1.23784]
[1725693787617,0.282111,54296.0,54285.0,0.0852]
[1725693787808,0.27505648,54294.0,54292.0,0.092117]
[1725693788013,0.57213749,54296.0,54292.0,0.092117]
[1725693788220,0.294961,54296.0,54293.0,0.092115]
[1725693788414,0.36706573,54295.0,54293.0,0.092115]
[1725693789006,0.092114,54294.0,54293.0,0.092115]
[1725693789217,0.092127,54286.0,54285.0,0.177328]
[1725693789418,0.282127,54286.0,54285.0,0.177328]
[1725693789615,0.282127,54286.0,54285.0,0.002]
[1725693789914,0.20285,54286.0,54284.0,0.092131]
[1725693790517,0.20285,54286.0,54285.0,0.092129]
[1725693790713,0.20285,54286.0,54285.0,0.093129]
[1725693790907,0.387104,54286.0,54285.0,0.001]
[1725693791114,0.57009682,54286.0,54285.0,0.001]
[1725693791511,0.089135,54282.0,54279.0,0.092139]
[1725693791820,0.19,54281.0,54279.0,0.092139]
[1725693792215,0.20285,54281.0,54279.0,0.092139]
[1725693793624,0.20185,54281.0,54279.0,0.092139]
[1725693794230,0.20285,54281.0,54279.0,0.100139]
[1725693794534,0.20285,54281.0,54280.0,0.092137]
[1725693795524,0.294986,54281.0,54280.0,0.092137]
[1725693796515,0.293986,54281.0,54280.0,0.092137]
[1725693796727,0.293986,54281.0,54280.0,0.093137]
[1725693797433,0.293986,54281.0,54280.0,0.09838044]
[1725693797434,0.104986,54281.0,54280.0,0.09838044]
[1725693798224,0.01285,54281.0,54280.0,0.09838044]
[1725693804225,0.01285,54281.0,54280.0,1.34319744]
[1725693804628,0.01285,54281.0,54280.0,1.25106044]
[1725693805634,0.01285,54281.0,54280.0,1.34319744]
[1725693805832,0.01285,54281.0,54280.0,1.53319744]
[1725693806129,0.09212,54291.0,54290.0,0.092121]
[1725693806321,0.10497,54291.0,54290.0,0.092121]
[1725693807320,0.092136,54281.0,54280.0,0.00524344]
[1725693807521,0.092128,54286.0,54279.0,0.092138]
[1725693807522,0.19,54284.0,54279.0,0.092138]
[1725693807720,0.380637,54280.0,54279.0,0.092138]
[1725693807928,0.092139,54279.0,54278.0,0.00527536]
[1725693808128,0.092139,54279.0,54276.0,0.092144]
[1725693808437,0.104989,54279.0,54278.0,0.092141]
[1725693809627,0.102989,54279.0,54278.0,0.092141]
[1725693810135,0.102989,54279.0,54278.0,0.095141]
[1725693811324,0.102989,54279.0,54278.0,0.003]
[1725693811522,0.15812069,54279.0,54278.0,0.003]
[1725693812130,0.102989,54279.0,54278.0,0.003]
[1725693812824,0.15812069,54279.0,54278.0,0.003]
[1725693814426,0.102989,54279.0,54278.0,0.003]
[1725693815324,0.102989,54279.0,54278.0,0.095141]
[1725693815529,0.01285,54279.0,54278.0,1.437861]
[1725693815826,0.07357012,54284.0,54278.0,0.88607997]
[1725693815827,0.092131,54284.0,54278.0,0.88607997]
[1725693816031,0.092129,54286.0,54284.0,0.09213]
[1725693816339,0.092129,54286.0,54284.0,0.15250838]
[1725693816634,0.104979,54286.0,54284.0,0.15250838]
[1725693817334,0.108979,54286.0,54285.0,0.092129]
[1725693817723,0.108979,54286.0,54285.0,0.16535738]
[1725693818336,0.104979,54286.0,54285.0,0.16537307]
[1725693818529,0.109979,54286.0,54285.0,0.092129]
[1725693820727,0.109979,54286.0,54285.0,0.09728912]
[1725693820932,0.299979,54286.0,54285.0,0.09728912]
[1725693823535,0.299979,54286.0,54285.0,0.0784328]
[1725693824139,0.299979,54286.0,54285.0,0.00516012]
[1725693824345,0.299979,54286.0,54279.0,0.0469]
[1725693824346,0.20785,54286.0,54282.0,0.092133]
[1725693824549,0.092129,54285.0,54284.0,0.07327407]
[1725693824742,0.092132,54283.0,54282.0,0.092133]
[1725693824944,0.14732902,54283.0,54282.0,0.092133]
[1725693825435,0.16017902,54283.0,54282.0,0.092133]
[1725693826646,0.104982,54283.0,54282.0,0.092133]
[1725693827135,0.092137,54280.0,54279.0,0.00518952]
[1725693827337,0.092137,54280.0,54279.0,0.092139]
[1725693827537,0.104987,54280.0,54279.0,0.092139]
[1725693828247,0.104987,54280.0,54279.0,0.094139]
[1725693832655,0.104987,54280.0,54279.0,0.16744363]
[1725693833047,0.104987,54280.0,54279.0,0.094139]
[1725693836352,0.1601879,54280.0,54279.0,0.094139]
[1725693840052,0.2601879,54280.0,54279.0,0.094139]
[1725693842160,0.204987,54280.0,54279.0,0.094139]
[1725693842357,0.2601879,54280.0,54279.0,0.094139]
[1725693844368,0.204987,54280.0,54279.0,0.094139]
[1725693844661,0.104987,54280.0,54279.0,0.094139]
[1725693844865,0.104987,54280.0,54279.0,0.32604537]
[1725693845060,0.104987,54280.0,54279.0,0.23450732]
[1725693845564,0.104987,54280.0,54279.0,0.23449658]
[1725693850374,0.204987,54280.0,54279.0,0.094139]
[1725693852274,0.204987,54280.0,54279.0,0.18579524]
[1725693852465,0.204987,54280.0,54279.0,0.32616341]
[1725693856475,0.204987,54280.0,54279.0,0.23450717]
[1725693857181,1.541941,54280.0,54277.0,0.09689846]
[1725693857375,0.829137,54279.0,54278.0,0.05503748]
[1725693857681,0.092153,54271.0,54270.0,0.00516189]
[1725693857879,0.205003,54271.0,54270.0,0.09169791]
[1725693858178,0.205003,54271.0,54262.0,0.00919513]
[1725693858179,0.092154,54270.0,54269.0,0.092155]
[1725693858385,0.01285,54270.0,54269.0,0.092155]
[1725693858581,0.01285,54270.0,54269.0,0.38225122]
[1725693859084,0.01085,54270.0,54269.0,0.38225122]
[1725693860385,0.01085,54270.0,54269.0,1.54019843]
[1725693860782,0.01085,54270.0,54269.0,0.94219843]
[1725693862188,0.01085,54270.0,54269.0,0.28939843]
[1725693863293,0.192148,54274.0,54273.0,0.092149]
[1725693863488,0.205008,54274.0,54273.0,0.23252424]
[1725693863687,0.192148,54274.0,54273.0,0.23252424]
[1725693863892,0.193978,54274.0,54273.0,0.23252424]
[1725693864090,0.093978,54274.0,54273.0,0.23252424]
[1725693864297,0.00183,54274.0,54273.0,0.23252424]
[1725693864795,0.00483,54274.0,54273.0,0.23252424]
[1725693865090,0.00483,54274.0,54273.0,0.092149]
[1725693865286,0.00483,54274.0,54273.0,0.23252481]
[1725693867600,0.196978,54274.0,54273.0,0.23252481]
[1725693867799,0.196978,54274.0,54273.0,0.32417868]
[1725693868001,0.196978,54274.0,54273.0,0.092149]
[1725693868200,0.196978,54274.0,54273.0,0.18380287]
[1725693868395,0.196978,54274.0,54273.0,0.092149]
[1725693868605,0.208008,54274.0,54273.0,0.092149]
[1725693874499,0.092153,54271.0,54270.0,0.18380787]
[1725693874804,0.092153,54271.0,54270.0,0.092154]
[1725693875105,0.01286,54271.0,54270.0,0.092154]
[1725693876605,0.01286,54271.0,54270.0,0.093154]
[1725693877301,0.01286,54271.0,54270.0,0.05503931]
[1725693877302,1.82021741,54271.0,54270.0,0.05503931]
[1725693877600,0.092154,54270.0,54269.0,0.00516819]
[1725693877801,0.092154,54270.0,54260.0,0.09165387]
[1725693877802,0.11286,54270.0,54268.0,0.14719631]
[1725693878004,0.26019925,54270.0,54269.0,0.05503931]
[1725693878203,0.53492824,54270.0,54269.0,0.05503931]
[1725693878401,0.092156,54269.0,54268.0,0.0550041]
[1725693878603,0.092156,54269.0,54265.0,0.09165387]
[1725693878803,0.105016,54269.0,54265.0,0.09165387]
[1725693879002,0.105016,54269.0,54268.0,0.092158]
[1725693879305,0.205016,54269.0,54268.0,0.092158]
[1725693879702,0.208016,54269.0,54268.0,0.092158]
[1725693880698,0.092161,54266.0,54264.0,0.092165]
[1725693880899,0.092161,54266.0,54262.0,0.09165387]
[1725693881601,0.105021,54266.0,54262.0,0.09165387]
[1725693881908,0.1,54265.0,54262.0,0.09685646]
[1725693882300,0.1,54265.0,54262.0,0.00520259]
[1725693882501,0.01286,54265.0,54261.0,0.09165387]
[1725693882909,0.01286,54265.0,54264.0,0.092165]
[1725693884709,0.01286,54265.0,54262.0,0.004]
[1725693884710,0.01308,54265.0,54262.0,0.004]
[1725693884915,0.092166,54264.0,54263.0,0.092165]
[1725693885305,0.104026,54264.0,54263.0,0.092165]
[1725693885504,0.01286,54264.0,54263.0,0.092165]
[1725693885904,0.01286,54264.0,54263.0,0.32421243]
[1725693886210,0.01286,54264.0,54263.0,0.23255856]
[1725693886406,0.01286,54264.0,54263.0,0.23555856]
[1725693887205,0.01286,54264.0,54263.0,0.39343752]
[1725693887708,0.01286,54264.0,54263.0,0.28345856]
[1725693888010,0.01286,54264.0,54263.0,0.28877077]
[1725693889423,0.01286,54264.0,54263.0,0.39873894]
[1725693889604,0.01286,54264.0,54263.0,1.55157894]
[1725693890009,0.01286,54264.0,54263.0,1.55157244]
[1725693890514,0.01286,54264.0,54263.0,0.95157244]
[1725693891612,0.01286,54264.0,54263.0,1.64373844]
[1725693892009,0.092148,54274.0,54263.0,1.55157244]
[1725693892314,0.092148,54274.0,54273.0,0.092149]
[1725693892521,0.1,54276.0,54275.0,0.092146]
[1725693892816,0.1,54276.0,54275.0,0.079286]
[1725693893012,0.11286,54276.0,54275.0,0.079286]
[1725693893628,0.205004,54276.0,54275.0,0.079286]
[1725693895207,0.217004,54276.0,54275.0,0.079286]
[1725693897610,0.27218925,54276.0,54275.0,0.079286]
[1725693899212,0.217004,54276.0,54275.0,0.079286]
[1725693900119,0.092146,54275.0,54274.0,0.00535692]
[1725693900426,0.092149,54274.0,54273.0,0.092148]
[1725693900930,0.105009,54274.0,54273.0,0.092148]
[1725693901917,0.115009,54274.0,54273.0,0.092148]
[1725693902726,0.092154,54271.0,54270.0,0.092154]
[1725693903626,0.105014,54271.0,54270.0,0.092154]
[1725693904723,0.01886,54271.0,54270.0,0.192154]
[1725693904913,0.07358027,54287.0,54276.0,0.092143]
[1725693905122,0.092124,54288.0,54287.0,0.092126]
[1725693905321,0.07358027,54289.0,54288.0,0.092124]
[1725693905522,0.0551993,54296.0,54287.0,0.09169415]
[1725693905824,0.21648027,54299.0,54297.0,0.092109]
[1725693905825,0.0551993,54298.0,54297.0,0.092109]
[1725693906023,0.33034044,54298.0,54297.0,0.192109]
[1725693906220,0.0680593,54299.0,54297.0,0.24698616]
[1725693906415,0.01286,54299.0,54297.0,0.24698616]
[1725693906617,0.01286,54299.0,54297.0,0.14698616]
[1725693907321,0.01286,54299.0,54297.0,0.092109]
[1725693910330,0.02286,54299.0,54297.0,0.093109]
[1725693912728,0.092107,54298.0,54297.0,0.093109]
[1725693912928,0.104967,54298.0,54297.0,0.001]
[1725693913321,0.48052089,54298.0,54297.0,0.001]
[1725693913624,0.57262789,54298.0,54297.0,0.001]
[1725693915225,0.57262789,54298.0,54283.0,0.05487716]
[1725693915226,0.092127,54286.0,54283.0,0.05487716]
[1725693915429,0.092127,54286.0,54284.0,0.09213]
[1725693915730,0.091127,54286.0,54284.0,0.09213]
[1725693915927,0.103987,54286.0,54284.0,0.09213]
[1725693916925,0.108987,54286.0,54284.0,0.09213]
[1725693918422,0.117987,54286.0,54284.0,0.09313]
[1725693918932,0.192129,54285.0,54284.0,0.09213]
[1725693919126,0.192129,54285.0,54284.0,0.09313]
[1725693919323,0.46897204,54285.0,54284.0,0.001]
[1725693919529,0.57623204,54285.0,54284.0,0.001]
[1725693920728,0.01286,54285.0,54284.0,0.193131]
[1725693921032,0.0551993,54302.0,54286.0,0.092127]
[1725693921235,0.0551993,54302.0,54285.0,0.55264]
[1725693921236,0.3265,54304.0,54301.0,0.1]
[1725693921438,0.0467,54309.0,54299.0,0.1]
[1725693921633,0.0467,54309.0,54304.0,0.1]
[1725693921634,0.01285,54309.0,54304.0,0.1]
[1725693921831,0.01285,54309.0,54308.0,0.092089]
[1725693922926,0.02685,54309.0,54308.0,0.093089]
[1725693928447,0.092094,54306.0,54297.0,0.05476928]
[1725693928747,0.19,54302.0,54301.0,0.092102]
[1725693929044,0.20285,54302.0,54301.0,0.092102]
[1725693931946,0.20585,54302.0,54301.0,0.093102]
[1725693934259,0.20585,54302.0,54301.0,0.14787128]
[1725693934649,0.20585,54302.0,54301.0,0.147924]
[1725693934964,0.20585,54302.0,54301.0,0.093102]
[1725693935159,0.20585,54302.0,54301.0,0.14792499]
[1725693938558,0.29795,54302.0,54301.0,0.14792499]
[1725693939262,0.20585,54302.0,54301.0,0.14792499]
[1725693942064,0.01585,54302.0,54301.0,0.14792499]
[1725693944458,0.01585,54302.0,54301.0,0.093102]
[1725693948370,0.01585,54302.0,54301.0,0.16612771]
[1725693948575,0.29795,54302.0,54301.0,0.07402571]
[1725693948760,0.29795,54302.0,54301.0,0.001]
[1725693949871,0.29795,54302.0,54301.0,0.0559823]
[1725693949872,0.66589578,54302.0,54301.0,0.0559823]
[1725693950070,0.66648578,54302.0,54301.0,0.001]
[1725693950267,0.75858578,54302.0,54301.0,0.001]
[1725693950464,0.75799578,54302.0,54301.0,0.001]
[1725693951169,0.75499578,54302.0,54297.0,0.0549823]
[1725693951375,0.281107,54298.0,54297.0,0.0549823]
[1725693951676,0.19,54298.0,54295.0,0.07302571]
[1725693951872,0.0541737,54297.0,54295.0,0.07302571]
[1725693952073,0.092112,54295.0,54294.0,0.07302571]
[1725693952463,0.091112,54295.0,54294.0,0.07302571]
[1725693952663,0.103962,54295.0,54294.0,0.07302571]
[1725693953164,0.102962,54295.0,54294.0,0.07302571]
[1725693954463,0.092117,54292.0,54291.0,0.00532396]
[1725693954665,0.092119,54291.0,54287.0,0.09128214]
[1725693954874,0.091119,54291.0,54290.0,0.092121]
[1725693955175,0.103969,54291.0,54290.0,0.092121]
[1725693955371,0.103969,54291.0,54285.0,0.07336103]
[1725693955372,0.092126,54287.0,54285.0,0.07336103]
[1725693955561,0.138427,54286.0,54284.0,0.05503174]
[1725693955764,0.282129,54285.0,54283.0,0.05503174]
[1725693955973,0.373262,54284.0,54283.0,0.05503174]
[1725693956171,0.092134,54282.0,54281.0,0.05503174]
[1725693956380,0.282134,54282.0,54281.0,0.05503174]
[1725693956572,0.294984,54282.0,54281.0,0.05503174]
[1725693957264,0.092136,54281.0,54280.0,0.05503174]
[1725693957677,0.091136,54281.0,54280.0,0.05503174]
[1725693957871,0.103986,54281.0,54280.0,0.05503174]
[1725693958277,0.092137,54280.0,54279.0,0.05503174]
[1725693958476,0.104987,54280.0,54279.0,0.05503174]
[1725693959275,0.104987,54280.0,54276.0,0.16550403]
[1725693959276,0.092139,54279.0,54278.0,0.05503174]
[1725693959775,0.092139,54279.0,54276.0,0.092143]
[1725693959776,0.092141,54278.0,54277.0,0.05503174]
[1725693960675,0.104991,54278.0,54277.0,0.05503174]
[1725693961378,0.104991,54278.0,54276.0,0.14717474]
[1725693962383,0.104991,54278.0,54277.0,0.003]
[1725693962877,0.092143,54277.0,54276.0,0.096143]
[1725693963479,0.104993,54277.0,54276.0,0.096143]
[1725693964971,0.01285,54277.0,54276.0,0.096143]
[1725693965178,0.01285,54277.0,54276.0,0.092143]
[1725693965377,0.092131,54284.0,54276.0,0.092143]
[1725693965583,0.19,54286.0,54279.0,0.05483886]
[1725693965780,0.092129,54285.0,54280.0,0.1399]
[1725693966077,0.27769307,54284.0,54283.0,0.092131]
[1725693966480,0.38267407,54284.0,54283.0,0.092131]
[1725693968682,0.57767407,54284.0,54283.0,0.092131]
[1725693971677,0.092137,54281.0,54280.0,0.092137]
[1725693972289,0.104987,54281.0,54280.0,0.092137]
[1725693972786,0.105987,54281.0,54280.0,0.092137]
[1725693973576,0.01385,54281.0,54280.0,0.092137]
[1725693976989,0.105986,54281.0,54280.0,0.092137]
[1725693977186,0.01385,54281.0,54280.0,0.092137]
[1725693977686,0.105986,54281.0,54280.0,0.092137]
[1725693978187,0.105986,54281.0,54280.0,0.14697586]
[1725693979288,0.105986,54281.0,54280.0,0.092137]
[1725693980891,0.1112681,54281.0,54280.0,0.092137]
[1725693981093,0.105986,54281.0,54280.0,0.092137]
[1725693981279,0.105986,54281.0,54280.0,0.16549803]
[1725693981485,0.295986,54281.0,54280.0,0.16549803]
[1725693982285,0.295986,54281.0,54280.0,0.07336103]
[1725693982580,0.092139,54279.0,54278.0,0.07336103]
[1725693983388,0.092141,54278.0,54277.0,0.092142]
[1725693984387,0.104991,54278.0,54277.0,0.092142]
[1725693984995,0.103991,54278.0,54277.0,0.092142]
[1725693985692,0.01285,54278.0,54277.0,0.23551528]
[1725693986101,0.01285,54278.0,54277.0,0.34554826]
[1725693987389,0.01285,54278.0,54277.0,0.23551528]
[1725693987597,0.01285,54278.0,54277.0,0.34554826]
[1725693988201,0.01285,54278.0,54277.0,0.23551528]
[1725693988692,0.01285,54278.0,54277.0,0.34554826]
[1725693989393,0.01285,54278.0,54277.0,0.23551528]
[1725693989698,0.01285,54278.0,54277.0,0.23550825]
[1725693991288,0.294991,54278.0,54277.0,0.23550825]
[1725693992294,0.20285,54278.0,54277.0,0.23550825]
[1725693992597,0.01285,54278.0,54277.0,0.23550825]
[1725693993204,0.01285,54278.0,54277.0,0.34554123]
[1725693993884,0.01285,54278.0,54277.0,0.23550825]
[1725693994083,0.01285,54278.0,54277.0,0.34554123]
[1725693994289,0.01285,54278.0,54277.0,0.23550825]
[1725693996798,0.294991,54278.0,54277.0,0.14336625]
[1725693997589,0.294991,54278.0,54277.0,0.23532093]
[1725693999290,0.104991,54278.0,54277.0,0.23550925]
[1725693999489,0.104991,54278.0,54277.0,0.23551227]
[1725693999695,0.104991,54278.0,54277.0,0.34554525]
[1725694000499,0.01285,54278.0,54277.0,0.34554525]
[1725694003500,0.01285,54278.0,54277.0,0.20517598]
[1725694003703,0.01285,54278.0,54277.0,0.34554517]
[1725694003899,0.07356495,54292.0,54288.0,0.092124]
[1725694004101,0.142,54305.0,54282.0,0.092134]
[1725694004102,0.07356495,54297.0,54296.0,0.09211]
[1725694004308,0.07356495,54304.0,54296.0,0.09211]
[1725694004611,0.01285,54304.0,54303.0,0.092098]
[1725694004803,0.01285,54304.0,54303.0,0.32419049]
[1725694005003,0.01285,54304.0,54303.0,0.23240104]
[1725694005204,0.01285,54304.0,54303.0,0.092098]
[1725694005795,0.02485,54304.0,54303.0,0.092098]
[1725694006204,0.07356495,54317.0,54303.0,0.092098]
[1725694006205,0.19489997,54318.0,54303.0,1.66703363]
[1725694006509,0.19,54315.0,54314.0,0.09208]
[1725694006705,0.46582316,54315.0,54314.0,0.09208]
[1725694007301,0.20285,54315.0,54314.0,0.09208]
[1725694007502,0.89927,54315.0,54307.0,0.09209]
[1725694007807,0.19,54309.0,54301.0,0.14699186]
[1725694008111,0.19,54302.0,54301.0,0.0921]
[1725694008309,0.14393764,54302.0,54301.0,0.0921]
[1725694008502,0.15578764,54302.0,54301.0,0.0921]
[1725694009503,0.01285,54302.0,54301.0,0.0921]
[1725694015304,0.19,54314.0,54312.0,0.092082]
[1725694015507,0.19,54314.0,54313.0,0.092082]
[1725694015710,0.20285,54314.0,54313.0,0.092082]
[1725694015909,0.00183,54314.0,54313.0,0.092082]
[1725694017509,0.19183,54314.0,54313.0,0.092082]
[1725694017924,0.24163,54314.0,54313.0,0.092082]
[1725694018210,0.24163,54314.0,54313.0,0.093082]
[1725694018414,0.33371,54314.0,54313.0,0.001]
[1725694020608,0.34473,54314.0,54313.0,0.001]
[1725694021106,0.34473,54314.0,54313.0,0.093082]
[1725694021619,0.25265,54314.0,54313.0,0.093082]
[1725694022017,0.20285,54314.0,54313.0,0.093082]
[1725694024607,0.01285,54314.0,54313.0,0.093082]
[1725694025810,0.01285,54314.0,54313.0,0.09786932]
[1725694027108,0.01285,54314.0,54313.0,0.093082]
[1725694027713,0.10493,54314.0,54313.0,0.093082]
[1725694027915,0.10493,54314.0,54313.0,0.001]
[1725694029612,0.29493,54314.0,54313.0,0.001]
[1725694030910,1.35521,54314.0,54306.0,0.05489186]
[1725694031122,0.092098,54303.0,54301.0,0.05489186]
[1725694031423,0.282098,54303.0,54300.0,0.14699486]
[1725694031723,0.294948,54303.0,54301.0,0.092102]
[1725694032221,0.294948,54303.0,54301.0,0.14699386]
[1725694032822,0.20285,54303.0,54302.0,0.0921]
[1725694033117,0.20285,54303.0,54302.0,0.16528915]
[1725694033422,0.294948,54303.0,54302.0,0.16528915]
[1725694034323,0.294948,54303.0,54302.0,0.0921]
[1725694035131,0.01285,54303.0,54302.0,0.0921]
[1725694035312,0.01485,54303.0,54302.0,0.0931]
[1725694036723,0.01285,54303.0,54302.0,0.0921]
[1725694036914,0.01485,54303.0,54302.0,0.0931]
[1725694039219,0.20485,54303.0,54302.0,0.001]
[1725694039423,0.296948,54303.0,54302.0,0.07437122]
[1725694040928,0.296948,54303.0,54302.0,0.001]
[1725694041723,0.106948,54303.0,54302.0,0.07437122]
[1725694043827,0.106948,54303.0,54302.0,0.0931]
[1725694044127,0.106948,54303.0,54302.0,0.16649438]
[1725694044428,0.106948,54303.0,54302.0,0.0931]
[1725694044819,0.01485,54303.0,54302.0,0.0931]
[1725694046734,0.092114,54294.0,54290.0,0.07343023]
[1725694047025,0.092119,54291.0,54290.0,0.05510439]
[1725694047226,0.092114,54294.0,54290.0,0.05511624]
[1725694047227,0.0451,54293.0,54290.0,0.05511624]
[1725694047526,0.092127,54287.0,54286.0,0.07343023]
[1725694047923,0.104977,54287.0,54286.0,0.07343023]
[1725694048325,0.104977,54287.0,54285.0,0.07343023]
[1725694048720,0.104977,54287.0,54284.0,0.16556123]
[1725694049428,0.104977,54287.0,54286.0,0.092127]
[1725694049933,0.092127,54286.0,54285.0,0.006]
[1725694050317,0.092127,54286.0,54285.0,0.06102237]
[1725694050624,0.104977,54286.0,54285.0,0.006]
[1725694051622,0.104977,54286.0,54284.0,0.092131]
[1725694051832,0.104977,54286.0,54285.0,0.0550041]
[1725694052231,0.107977,54286.0,54285.0,0.0560041]
[1725694052530,0.01585,54286.0,54285.0,0.1481331]
[1725694052833,0.19,54302.0,54286.0,0.092126]
[1725694053036,0.092105,54299.0,54297.0,0.092108]
[1725694053229,0.092105,54299.0,54298.0,0.092107]
[1725694053821,0.01285,54299.0,54298.0,0.092107]
[1725694054426,0.092083,54312.0,54298.0,1.434627]
[1725694054642,0.092083,54312.0,54303.0,0.19]
[1725694054932,0.104933,54312.0,54310.0,0.092085]
[1725694055336,0.01285,54312.0,54306.0,0.05495215]
[1725694055742,0.01285,54312.0,54309.0,0.092087]
[1725694056243,0.01285,54312.0,54310.0,0.092086]
[1725694058428,0.01285,54312.0,54310.0,0.093086]
[1725694058631,0.01285,54312.0,54311.0,0.092085]
[1725694059940,0.01285,54312.0,54311.0,0.093085]
[1725694061342,0.01285,54312.0,54311.0,0.092085]
[1725694061532,0.01285,54312.0,54311.0,0.093085]
[1725694061930,0.01285,54312.0,54311.0,0.092085]
[1725694062130,0.01285,54312.0,54311.0,0.093085]
[1725694064543,0.104933,54312.0,54311.0,0.093085]
[1725694065545,0.104933,54312.0,54311.0,0.001]
[1725694066338,0.091091,54308.0,54306.0,0.092093]
[1725694066537,0.05875,54312.0,54306.0,0.092093]
[1725694066538,0.282092,54307.0,54306.0,0.092093]
[1725694067240,0.294942,54307.0,54306.0,0.092093]
[1725694067636,0.294942,54307.0,54306.0,0.14703848]
[1725694068138,0.293942,54307.0,54306.0,0.14703848]
[1725694069045,0.293942,54307.0,54306.0,0.14803848]
[1725694070243,0.293942,54307.0,54306.0,0.093093]
[1725694070244,0.01285,54307.0,54306.0,0.093093]
[1725694070546,0.09208,54315.0,54306.0,0.001]
[1725694070743,0.10493,54315.0,54311.0,0.05491525]
[1725694071846,0.10493,54315.0,54314.0,0.09208]
[1725694073447,0.01285,54315.0,54314.0,0.09208]
[1725694073746,0.092084,54312.0,54310.0,0.092086]
[1725694073948,0.282084,54312.0,54310.0,0.092086]
[1725694074144,0.282084,54312.0,54311.0,0.001]
[1725694074145,0.294934,54312.0,54311.0,0.001]
[1725694078756,0.293934,54312.0,54311.0,0.001]
[1725694081854,0.34892402,54312.0,54311.0,0.001]
[1725694082052,0.092088,54309.0,54308.0,0.05491525]
[1725694082247,0.103938,54309.0,54308.0,0.05491525]
[1725694082448,0.09209,54308.0,54307.0,0.07322033]
[1725694082648,0.09209,54308.0,54306.0,0.07322033]
[1725694082649,0.092092,54307.0,54306.0,0.07322033]
[1725694082957,0.28209,54308.0,54300.0,0.11483629]
[1725694082958,0.092095,54305.0,54304.0,0.07322033]
[1725694083257,0.092097,54304.0,54303.0,0.07322033]
[1725694083454,0.091098,54303.0,54302.0,0.0921]
[1725694083846,0.103948,54303.0,54302.0,0.0921]
[1725694085251,0.102948,54303.0,54302.0,0.0921]
[1725694085553,0.102948,54303.0,54300.0,0.09152571]
[1725694085554,0.092102,54301.0,54300.0,0.092104]
[1725694085750,0.091102,54301.0,54300.0,0.092104]
[1725694085945,0.103952,54301.0,54300.0,0.092104]
[1725694086457,0.102952,54301.0,54300.0,0.092104]
[1725694088658,0.109952,54301.0,54300.0,0.093104]
[1725694089760,0.01985,54301.0,54300.0,0.093104]
[1725694091558,0.01985,54301.0,54300.0,0.18462971]
[1725694091761,0.01985,54301.0,54300.0,0.32493544]
[1725694092254,0.01985,54301.0,54300.0,0.18462971]
[1725694092457,0.01985,54301.0,54300.0,0.093104]
[1725694095154,0.111952,54301.0,54300.0,0.093104]
[1725694097461,0.01985,54301.0,54300.0,0.093104]
[1725694100164,0.01985,54301.0,54300.0,0.001]
[1725694100165,0.35694202,54301.0,54300.0,0.001]
[1725694100370,0.302172,54301.0,54300.0,0.001]
[1725694100662,0.301952,54301.0,54300.0,0.001]
[1725694104154,0.35712952,54301.0,54300.0,0.001]
[1725694104470,0.301952,54301.0,54300.0,0.001]
[1725694105567,0.07503144,54301.0,54300.0,0.093104]
[1725694105763,0.01985,54301.0,54300.0,0.16656907]
[1725694105959,0.01985,54301.0,54300.0,0.093104]
[1725694108271,0.01985,54301.0,54300.0,0.3249393]
[1725694108778,0.01985,54301.0,54300.0,0.093104]
[1725694109073,0.20985,54301.0,54300.0,0.093104]
[1725694109468,0.26503144,54301.0,54300.0,0.093104]
[1725694110472,0.35713344,54301.0,54300.0,0.093104]
[1725694111366,0.301952,54301.0,54300.0,0.093104]
[1725694112077,0.301952,54301.0,54300.0,0.16664226]
[1725694112270,0.301952,54301.0,54300.0,0.093104]
[1725694112474,0.301952,54301.0,54300.0,0.1666506]
[1725694112777,0.301952,54301.0,54300.0,0.093104]
[1725694117672,0.35716677,54301.0,54300.0,0.093104]
[1725694118581,0.26506477,54301.0,54300.0,0.093104]
[1725694119282,0.20985,54301.0,54300.0,0.093104]
[1725694120681,0.20985,54301.0,54300.0,0.001]
[1725694120682,0.5794404,54301.0,54300.0,0.001]